bitfinex/quotes_SOLUSD_20250318
["timestamp","ask_amount","ask_price","bid_price","bid_amount"]
[1742302927068,25.5502546,123.77,123.74,28.285]
[1742302927468,25.5502546,123.77,123.74,28.315]
[1742302928469,25.5501546,123.75,123.74,28.315]
[1742302929172,16.34403774,123.75,123.74,28.315]
[1742302929373,16.34403774,123.76,123.74,28.315]
[1742302929677,16.34413774,123.77,123.74,28.315]
[1742302929875,0.0001,123.77,123.74,28.315]
[1742302930581,16.34413774,123.77,123.74,28.315]
[1742302932264,16.34403774,123.75,123.74,8.1114]
[1742302933052,36.34403774,123.75,123.74,8.1114]
[1742302933683,16.34413774,123.77,123.74,8.1114]
[1742302933983,16.34413774,123.77,123.74,28.315]
[1742302934166,0.0001,123.77,123.74,28.315]
[1742302935676,16.34413774,123.77,123.74,28.315]
[1742302935873,16.34403774,123.76,123.74,28.315]
[1742302936382,16.34413774,123.77,123.74,28.315]
[1742302939089,0.0001,123.77,123.74,28.315]
[1742302942489,7.01,123.79,123.74,220.16633774]
[1742302943080,0.03,123.79,123.74,220.16633774]
[1742302943476,16.34403774,123.8,123.76,28.2804]
[1742302943795,16.34403774,123.8,123.76,203.7811]
[1742302944785,220.82,123.81,123.76,203.7811]
[1742302944786,16.34403774,123.79,123.76,203.7811]
[1742302945308,16.34403774,123.8,123.76,203.7811]
[1742302946690,237.16403774,123.81,123.76,203.7811]
[1742302947304,237.16403774,123.81,123.76,216.37044648]
[1742302947508,16.34403774,123.8,123.76,216.37044648]
[1742302948890,16.34403774,123.79,123.76,216.37044648]
[1742302949803,16.34403774,123.8,123.76,216.37044648]
[1742302951085,23.32403774,123.81,123.76,232.71448422]
[1742302951494,16.34403774,123.79,123.76,216.37044648]
[1742302952399,16.40703774,123.8,123.76,216.37044648]
[1742302953400,16.40703774,123.8,123.77,12.58934648]
[1742302954511,16.34403774,123.79,123.77,12.58934648]
[1742302955091,16.34403774,123.79,123.76,216.37044648]
[1742302955715,16.40703774,123.8,123.76,216.37044648]
[1742302956608,0.063,123.8,123.76,216.37044648]
[1742302956903,16.40703774,123.8,123.76,216.37044648]
[1742302957107,0.063,123.8,123.76,232.71448422]
[1742302957412,0.063,123.8,123.76,239.69448422]
[1742302957598,0.063,123.8,123.77,30.43818422]
[1742302958403,0.0001,123.8,123.77,30.43818422]
[1742302958607,0.0001,123.8,123.77,165.53818422]
[1742302958794,0.0001,123.8,123.78,12.58934648]
[1742302958987,0.0001,123.8,123.79,8.0781]
[1742302959215,0.0001,123.8,123.79,143.1781]
[1742302959915,0.0001,123.8,123.79,159.52213774]
[1742302960128,0.0001,123.8,123.79,159.94862245]
[1742302960488,0.0001,123.8,123.79,161.54272245]
[1742302960793,0.0001,123.8,123.79,174.13206893]
[1742302961025,213.863,123.85,123.79,293.75891779]
[1742302961197,0.063,123.85,123.82,16.34403774]
[1742302961520,0.063,123.85,123.82,164.03338422]
[1742302962317,0.063,123.85,123.83,16.34403774]
[1742302962814,0.0001,123.85,123.83,16.34403774]
[1742302963018,0.0001,123.86,123.84,0.42648471]
[1742302963395,0.0001,123.86,123.85,8.0742]
[1742302963595,0.0001,123.86,123.85,143.1742]
[1742302963800,0.0001,123.86,123.85,159.51823774]
[1742302964200,0.0001,123.87,123.85,159.80256088]
[1742302964597,0.0001,123.87,123.86,16.77052245]
[1742302965502,0.0001,123.87,123.86,24.84412245]
[1742302965718,0.0001,123.87,123.86,30.84592245]
[1742302966291,0.0001,123.87,123.86,184.59557131]
[1742302966725,0.063,123.9,123.86,245.14767131]
[1742302966893,0.063,123.9,123.87,16.34403774]
[1742302967393,0.063,123.9,123.88,0.42648471]
[1742302967597,0.063,123.9,123.89,8.0716]
[1742302967811,0.063,123.9,123.89,143.1716]
[1742302969125,0.0001,123.9,123.89,143.1716]
[1742302972814,0.0001,123.91,123.9,0.14216157]
[1742302973007,0.0001,123.92,123.9,16.48619931]
[1742302974118,0.03,123.94,123.9,151.58619931]
[1742302974420,0.03,123.94,123.91,28.2462]
[1742302974622,16.37403774,123.94,123.91,28.2462]
[1742302975413,0.03,123.94,123.91,28.2462]
[1742302975621,16.34403774,123.96,123.91,84.94203774]
[1742302976922,16.37403774,123.97,123.92,16.34403774]
[1742302977230,16.37403774,123.97,123.92,151.44403774]
[1742302977526,16.34403774,123.96,123.92,135.1]
[1742302978724,16.34403774,123.96,123.93,28.2416]
[1742302983324,0.03,123.97,123.93,28.2416]
[1742302983506,16.37403774,123.97,123.93,28.2416]
[1742302985514,16.37403774,123.97,123.93,68.5869]
[1742302985829,0.03,123.97,123.93,68.5869]
[1742302986002,0.03,123.97,123.93,203.6869]
[1742302986203,16.37403774,123.97,123.93,203.6869]
[1742302988224,16.37403774,123.97,123.93,163.3416]
[1742302988428,16.34403774,123.96,123.93,163.3416]
[1742302989113,0.03,123.97,123.94,1.5241]
[1742302989624,0.03,123.97,123.95,8.0677]
[1742302993436,36.37403774,123.99,123.95,68.5759]
[1742302993735,16.37403774,123.99,123.95,68.5759]
[1742302994148,16.34403774,123.98,123.95,68.5759]
[1742302994442,36.37403774,123.99,123.95,68.5759]
[1742302994743,36.37403774,123.99,123.95,203.6759]
[1742302995725,16.34403774,123.98,123.95,203.6759]
[1742302997724,36.37403774,123.99,123.95,203.6759]
[1742302998640,16.37403774,123.99,123.95,220.01993774]
[1742302998940,16.37403774,123.99,123.95,203.6759]
[1742303001222,16.37403774,123.99,123.95,203.7389]
[1742303001423,16.34403774,123.98,123.95,163.4001]
[1742303001643,16.37403774,123.98,123.95,163.4001]
[1742303002642,0.03,123.98,123.95,186.38283774]
[1742303003027,16.34403774,123.96,123.95,8.1307]
[1742303003222,26.99,123.98,123.95,8.1307]
[1742303003420,16.34403774,123.96,123.95,0.063]
[1742303005720,100.36983756,123.96,123.95,0.063]
[1742303007216,108.7212607,123.96,123.95,0.063]
[1742303007422,20.0,123.93,123.89,8.0716]
[1742303007632,16.34403774,123.91,123.89,8.0716]
[1742303008164,16.34403774,123.92,123.89,8.0716]
[1742303009056,20.0,123.93,123.89,28.2507]
[1742303009233,16.34403774,123.92,123.89,28.2507]
[1742303011055,20.0,123.94,123.89,68.609]
[1742303011357,16.34403774,123.93,123.89,68.609]
[1742303011880,16.34403774,123.92,123.89,28.2507]
[1742303012057,16.34403774,123.91,123.89,28.2507]
[1742303012259,16.34403774,123.92,123.89,28.2507]
[1742303013359,16.34403774,123.92,123.89,28.2807]
[1742303013662,16.34403774,123.93,123.89,68.639]
[1742303014752,16.34403774,123.92,123.89,68.639]
[1742303015570,16.34403774,123.92,123.89,28.2807]
[1742303018265,16.34403774,123.91,123.89,163.3807]
[1742303018454,16.34403774,123.9,123.89,143.2016]
[1742303018660,16.34403774,123.9,123.89,8.1016]
[1742303020856,16.34403774,123.9,123.89,0.03]
[1742303021059,81.7201887,123.9,123.89,0.03]
[1742303022776,16.34403774,123.9,123.89,0.03]
[1742303025449,81.7201887,123.9,123.89,0.03]
[1742303026163,100.6541607,123.9,123.89,0.03]
[1742303026363,18.64964886,123.89,123.86,8.1036]
[1742303026571,16.34403774,123.87,123.86,8.1036]
[1742303026770,16.34403774,123.87,123.86,0.03]
[1742303028345,16.04403774,123.87,123.86,0.03]
[1742303031364,23.00403774,123.87,123.86,0.03]
[1742303031567,0.28432314,123.86,123.83,8.0752]
[1742303031767,101.7201887,123.84,123.82,8.1388]
[1742303032070,101.7201887,123.84,123.82,0.063]
[1742303032071,41.9536866,123.83,123.82,0.063]
[1742303033760,47.95932824,123.83,123.82,0.063]
[1742303040094,40.99932824,123.83,123.82,0.063]
[1742303040379,48.24365138,123.83,123.82,0.063]
[1742303041680,0.28432314,123.82,123.8,0.03]
[1742303041903,54.9936866,123.81,123.8,0.03]
[1742303042283,60.99932824,123.81,123.8,0.03]
[1742303045184,59.99932824,123.81,123.8,0.03]
[1742303047484,60.28365138,123.81,123.8,0.03]
[1742303049371,59.99932824,123.81,123.8,0.03]
[1742303049578,79.85908115,123.81,123.8,0.03]
[1742303050699,20.0,123.77,123.76,0.03]
[1742303050879,54.9936866,123.77,123.76,0.03]
[1742303051283,50.58729384,123.77,123.76,0.03]
[1742303051586,50.87161698,123.77,123.76,0.03]
[1742303053872,51.01377855,123.77,123.76,0.03]
[1742303054596,50.58729384,123.77,123.76,0.03]
[1742303055095,15.59360724,123.77,123.76,0.03]
[1742303055276,31.93764498,123.77,123.76,0.03]
[1742303061092,50.58729384,123.77,123.76,0.03]
[1742303062798,60.57475801,123.77,123.76,0.03]
[1742303064193,60.85908115,123.77,123.76,0.03]
[1742303064388,60.85908115,123.77,123.74,0.03]
[1742303064389,38.64964886,123.75,123.74,0.03]
[1742303064599,54.9936866,123.75,123.74,0.03]
[1742303065101,80.57475801,123.75,123.74,0.03]
[1742303066092,90.54961398,123.75,123.74,0.03]
[1742303066399,80.56214981,123.75,123.74,0.03]
[1742303068701,90.57302306,123.75,123.74,0.03]
[1742303072908,80.56214981,123.75,123.74,0.03]
[1742303073296,70.58729384,123.75,123.74,0.03]
[1742303074012,0.28432314,123.74,123.73,0.03]
[1742303074193,36.34403774,123.72,123.71,8.1134]
[1742303074393,120.36983756,123.72,123.71,0.03]
[1742303075107,136.24776794,123.72,123.71,0.03]
[1742303079111,135.9634448,123.72,123.71,0.03]
[1742303079308,136.24776794,123.72,123.71,0.03]
[1742303079693,19.07613357,123.71,123.69,0.03]
[1742303079918,23.60836088,123.7,123.69,0.03]
[1742303080305,39.20196812,123.7,123.69,0.03]
[1742303080505,18.64964886,123.69,123.67,0.03]
[1742303080718,16.34403774,123.68,123.67,0.03]
[1742303081015,34.9936866,123.68,123.67,0.03]
[1742303081596,50.58729384,123.68,123.67,0.03]
[1742303082317,50.87161698,123.68,123.67,0.03]
[1742303082691,57.1944264,123.68,123.67,0.03]
[1742303084215,50.58729384,123.68,123.67,0.03]
[1742303086094,15.59360724,123.68,123.67,0.03]
[1742303086294,35.59360724,123.68,123.67,0.03]
[1742303087022,51.93764498,123.68,123.67,0.03]
[1742303087321,36.34403774,123.68,123.67,0.03]
[1742303090927,42.35850663,123.68,123.67,0.03]
[1742303094130,22.35850663,123.68,123.67,0.03]
[1742303098640,6.01446889,123.68,123.67,0.03]
[1742303100639,22.35850663,123.68,123.67,0.03]
[1742303101235,16.34403774,123.68,123.67,0.03]
[1742303102842,20.0,123.68,123.67,0.03]
[1742303103046,16.40703774,123.69,123.67,0.03]
[1742303103755,6.02223468,123.68,123.67,0.03]
[1742303104355,22.36627242,123.68,123.67,0.03]
[1742303104842,6.02223468,123.68,123.67,0.03]
[1742303108137,22.36627242,123.68,123.67,0.03]
[1742303112839,22.42927242,123.68,123.67,0.03]
[1742303113033,41.36324442,123.68,123.67,0.03]
[1742303113440,49.59070599,123.68,123.67,0.03]
[1742303113637,20.0,123.66,123.65,0.063]
[1742303113841,108.7001887,123.66,123.65,0.063]
[1742303114334,114.72242338,123.66,123.65,0.063]
[1742303114847,49.34627242,123.66,123.65,0.063]
[1742303116254,114.72242338,123.66,123.65,0.063]
[1742303116766,29.34627242,123.66,123.65,0.063]
[1742303116987,13.00223468,123.66,123.65,0.063]
[1742303117140,6.02223468,123.66,123.65,0.063]
[1742303117529,26.02223468,123.66,123.65,0.063]
[1742303117730,16.34403774,123.67,123.65,0.063]
[1742303121662,16.34403774,123.66,123.65,0.063]
[1742303136245,0.063,123.66,123.65,0.063]
[1742303137748,20.063,123.67,123.65,7.7408]
[1742303137970,0.063,123.67,123.65,7.7408]
[1742303138863,0.063,123.67,123.65,20.33014648]
[1742303139087,0.063,123.69,123.66,16.34403774]
[1742303139248,0.063,123.69,123.67,16.34403774]
[1742303139573,6.04633792,123.68,123.66,16.34403774]
[1742303139768,6.04633792,123.68,123.67,8.086]
[1742303140154,3.792e-05,123.68,123.67,8.086]
[1742303140354,3.792e-05,123.68,123.67,24.43003774]
[1742303140859,3.792e-05,123.69,123.67,24.43003774]
[1742303141055,3.792e-05,123.69,123.68,16.34403774]
[1742303141777,3.792e-05,123.69,123.68,24.42933774]
[1742303141981,3.792e-05,123.69,123.68,8.0853]
[1742303142985,3.792e-05,123.69,123.68,24.42933774]
[1742303144658,3.792e-05,123.69,123.68,8.0853]
[1742303145294,16.34407566,123.69,123.68,8.0853]
[1742303145955,16.34407566,123.69,123.66,28.3023]
[1742303148673,3.792e-05,123.69,123.66,28.3023]
[1742303151172,3.792e-05,123.69,123.66,44.64633774]
[1742303152059,3.792e-05,123.69,123.66,57.23568422]
[1742303153672,3.792e-05,123.69,123.66,40.89164648]
[1742303155957,3.792e-05,123.69,123.66,28.3023]
[1742303156256,3.792e-05,123.69,123.66,163.4023]
[1742303156568,16.34407566,123.69,123.66,163.4023]
[1742303157172,3.792e-05,123.69,123.66,163.4023]
[1742303159966,3.792e-05,123.69,123.66,163.4323]
[1742303161783,3.792e-05,123.69,123.66,179.77633774]
[1742303162600,3.792e-05,123.69,123.66,163.4323]
[1742303163388,3.792e-05,123.69,123.66,179.77633774]
[1742303167190,3.792e-05,123.69,123.66,192.36568422]
[1742303167679,3.792e-05,123.69,123.67,0.42648471]
[1742303167990,3.792e-05,123.69,123.67,16.77052245]
[1742303168164,3.792e-05,123.69,123.68,8.0853]
[1742303170000,35.49616542,123.72,123.68,68.7256]
[1742303170174,16.34403774,123.73,123.68,220.16963774]
[1742303170489,20.0,123.72,123.68,220.16963774]
[1742303174377,16.34403774,123.73,123.69,16.77052245]
[1742303174580,16.34403774,123.74,123.7,68.7144]
[1742303174894,0.063,123.76,123.7,68.7144]
[1742303174895,0.063,123.76,123.71,0.42648471]
[1742303175107,0.063,123.76,123.73,16.34403774]
[1742303175108,0.0001,123.76,123.73,16.34403774]
[1742303175275,16.34403774,123.75,123.72,6.96]
[1742303175600,0.0001,123.76,123.71,135.1]
[1742303175601,16.34403774,123.73,123.71,135.1]
[1742303175787,16.34403774,123.73,123.7,244.2347]
[1742303179702,1.6404,123.76,123.7,244.2347]
[1742303179703,16.34403774,123.74,123.7,244.2347]
[1742303180797,36.34403774,123.74,123.7,163.3941]
[1742303181101,16.34403774,123.71,123.7,28.2941]
[1742303182208,16.34403774,123.71,123.7,20.2101]
[1742303182427,16.34403774,123.72,123.7,20.2101]
[1742303182701,6.96,123.73,123.7,20.2101]
[1742303182887,23.30403774,123.73,123.7,20.2101]
[1742303183087,16.34403774,123.72,123.7,20.2101]
[1742303183712,16.34403774,123.72,123.7,20.2401]
[1742303185281,16.34403774,123.71,123.7,20.2401]
[1742303187013,16.34403774,123.72,123.7,20.2401]
[1742303189112,16.34403774,123.72,123.7,28.3241]
[1742303189404,16.34403774,123.71,123.7,0.03]
[1742303189705,35.27800974,123.71,123.7,0.03]
[1742303189913,20.0,123.69,123.68,25.30832388]
[1742303190104,43.30403774,123.69,123.68,25.30832388]
[1742303190291,43.30403774,123.69,123.68,33.39362388]
[1742303190491,43.30403774,123.69,123.68,8.0853]
[1742303191300,43.30403774,123.69,123.66,20.2458]
[1742303191603,16.34403774,123.68,123.66,20.2458]
[1742303192207,43.30403774,123.69,123.66,20.2458]
[1742303193184,43.30403774,123.69,123.66,28.3324]
[1742303193490,26.96,123.69,123.66,28.3324]
[1742303193802,43.30403774,123.69,123.66,28.3324]
[1742303194211,16.34403774,123.68,123.66,28.3324]
[1742303196018,43.36703774,123.69,123.66,28.3324]
[1742303198012,16.34403774,123.67,123.66,8.1166]
[1742303198997,16.34403774,123.67,123.66,0.03]
[1742303200203,16.34403774,123.68,123.66,0.03]
[1742303201010,43.36703774,123.69,123.66,0.03]
[1742303201215,16.34403774,123.67,123.66,0.03]
[1742303208831,35.27800974,123.67,123.66,0.03]
[1742303209327,18.933972,123.67,123.66,0.03]
[1742303209525,35.27800974,123.67,123.66,0.03]
[1742303209916,16.34403774,123.67,123.66,0.03]
[1742303211117,16.34403774,123.68,123.66,0.03]
[1742303212113,23.30403774,123.68,123.66,0.03]
[1742303212316,16.34403774,123.67,123.66,0.03]
[1742303212838,6.96,123.68,123.66,0.03]
[1742303214631,0.063,123.69,123.66,0.03]
[1742303214928,16.40703774,123.69,123.66,0.03]
[1742303218731,23.36703774,123.69,123.66,0.03]
[1742303219328,7.023,123.69,123.66,0.03]
[1742303219943,0.063,123.69,123.66,0.03]
[1742303220240,0.063,123.69,123.66,16.37403774]
[1742303220445,0.063,123.69,123.66,0.03]
[1742303220626,16.40703774,123.69,123.66,0.03]
[1742303221010,16.34403774,123.68,123.66,0.03]
[1742303222636,16.34403774,123.67,123.66,0.03]
[1742303222848,16.34403774,123.68,123.66,0.03]
[1742303224047,16.34403774,123.67,123.66,0.03]
[1742303224439,16.34403774,123.68,123.66,0.03]
[1742303227935,16.40703774,123.69,123.66,0.03]
[1742303228260,0.063,123.69,123.66,0.03]
[1742303229627,16.40703774,123.69,123.66,0.03]
[1742303229829,0.063,123.69,123.66,16.51619931]
[1742303230159,213.98,123.73,123.68,16.48619931]
[1742303230160,230.32403774,123.73,123.68,16.48619931]
[1742303230460,237.28403774,123.73,123.68,151.58619931]
[1742303231332,16.34403774,123.72,123.68,151.58619931]
[1742303231756,230.32403774,123.73,123.68,151.58619931]
[1742303232143,230.32403774,123.73,123.69,28.2965]
[1742303232458,213.98,123.73,123.69,85.06413774]
[1742303233463,230.32403774,123.73,123.69,85.06413774]
[1742303233625,230.32403774,123.73,123.69,220.16413774]
[1742303234653,213.98,123.73,123.69,220.16413774]
[1742303237133,23.30403774,123.75,123.7,18.09499931]
[1742303238139,23.30413774,123.76,123.71,22.52293774]
[1742303238343,23.30413774,123.76,123.71,157.62293774]
[1742303238529,23.30413774,123.76,123.72,28.2896]
[1742303240749,16.34403774,123.75,123.72,8.0827]
[1742303242860,0.03,123.75,123.72,8.0827]
[1742303243862,0.03,123.75,123.72,28.2896]
[1742303246065,0.03,123.75,123.72,44.63363774]
[1742303248964,0.03,123.75,123.73,16.48619931]
[1742303249139,0.03,123.75,123.73,0.14216157]
[1742303249559,0.03,123.75,123.74,8.0814]
[1742303251644,0.03,123.75,123.74,143.32356157]
[1742303251844,0.0001,123.76,123.75,0.28432314]
[1742303252145,0.0001,123.76,123.75,35.27800974]
[1742303252349,0.0001,123.76,123.75,170.52017131]
[1742303252566,0.0001,123.76,123.75,176.93267131]
[1742303252936,0.0001,123.76,123.75,141.65466157]
[1742303253238,0.0001,123.76,123.75,149.73546157]
[1742303254641,0.0001,123.76,123.75,185.01347131]
[1742303259869,0.0001,123.79,123.76,19.07613357]
[1742303260068,0.063,123.81,123.79,18.79181043]
[1742303260275,0.063,123.81,123.79,170.23584817]
[1742303260445,0.063,123.81,123.79,153.89181043]
[1742303260851,0.0001,123.81,123.8,8.0775]
[1742303261152,0.0001,123.82,123.81,18.79181043]
[1742303262577,0.0001,123.82,123.81,153.89181043]
[1742303263070,0.0001,123.82,123.81,161.96861043]
[1742303263272,0.0001,123.82,123.81,178.31264817]
[1742303263477,0.0001,123.82,123.81,178.59697131]
[1742303264181,0.0001,123.82,123.81,43.49697131]
[1742303267150,0.0001,123.82,123.81,27.15293357]
[1742303267569,0.0001,123.82,123.81,162.25293357]
[1742303268271,0.0001,123.82,123.81,178.59697131]
[1742303272880,0.0001,123.82,123.81,161.96861043]
[1742303273583,0.0001,123.82,123.81,26.86861043]
[1742303274185,0.0001,123.82,123.81,8.0768]
[1742303274388,16.34413774,123.82,123.81,8.0768]
[1742303275580,16.34413774,123.82,123.79,20.1945]
[1742303275880,16.34403774,123.81,123.79,20.1945]
[1742303276981,0.0001,123.82,123.79,20.1945]
[1742303277383,0.0001,123.82,123.8,0.14216157]
[1742303277688,0.0001,123.82,123.81,8.0768]
[1742303278484,16.34413774,123.82,123.81,8.0768]
[1742303279466,0.0001,123.82,123.81,8.1398]
[1742303280171,0.0001,123.82,123.81,8.28196157]
[1742303282186,0.0001,123.82,123.81,8.1398]
[1742303282386,16.34413774,123.82,123.81,8.1398]
[1742303283291,16.34413774,123.82,123.81,0.063]
[1742303284381,20.0,123.79,123.76,8.0801]
[1742303284701,16.34403774,123.77,123.76,8.0801]
[1742303284905,16.34403774,123.77,123.76,28.2804]
[1742303285484,16.34403774,123.77,123.76,20.2003]
[1742303285866,16.34403774,123.78,123.76,20.2003]
[1742303286065,6.96,123.8,123.77,0.14216157]
[1742303286274,23.30403774,123.8,123.77,0.14216157]
[1742303286596,16.34403774,123.78,123.76,20.2003]
[1742303289183,16.34403774,123.79,123.76,20.2003]
[1742303290000,16.34403774,123.78,123.76,20.2003]
[1742303290370,16.34403774,123.77,123.76,20.2003]
[1742303290883,16.34403774,123.77,123.75,8.17057689]
[1742303291186,21.6893,123.81,123.75,8.17057689]
[1742303291187,16.34403774,123.76,123.75,8.17057689]
[1742303291767,23.30403774,123.77,123.75,8.17057689]
[1742303291981,23.30403774,123.77,123.75,0.08977689]
[1742303294786,16.34403774,123.79,123.75,0.23193846]
[1742303295082,1.6026,123.82,123.75,35.22562506]
[1742303295083,23.30403774,123.8,123.75,35.22562506]
[1742303295991,16.34403774,123.79,123.75,18.88158732]
[1742303296296,16.34403774,123.79,123.76,28.2804]
[1742303297772,0.0001,123.82,123.77,18.79181043]
[1742303297965,6.9601,123.82,123.77,35.13584817]
[1742303298272,16.34403774,123.81,123.77,35.13584817]
[1742303299080,16.34403774,123.81,123.78,28.2759]
[1742303301394,16.34403774,123.79,123.78,28.2759]
[1742303303088,6.9601,123.82,123.78,28.2759]
[1742303303278,16.34403774,123.8,123.78,20.1971]
[1742303304284,16.34403774,123.79,123.78,20.1971]
[1742303305385,16.34403774,123.79,123.76,28.3434]
[1742303307886,16.34403774,123.8,123.76,28.3434]
[1742303308903,16.34403774,123.79,123.76,28.3434]
[1742303312606,16.34403774,123.77,123.76,28.3434]
[1742303313182,16.34403774,123.77,123.76,0.063]
[1742303323733,20.0,123.74,123.71,8.0834]
[1742303323905,16.34403774,123.72,123.71,8.0834]
[1742303325521,16.34403774,123.72,123.69,28.3588]
[1742303325722,16.34403774,123.71,123.69,28.3588]
[1742303326248,6.96,123.73,123.7,35.13584817]
[1742303326746,6.96,123.73,123.7,18.79181043]
[1742303327038,16.34403774,123.74,123.7,18.79181043]
[1742303328047,16.34403774,123.74,123.71,28.2919]
[1742303329544,16.34403774,123.73,123.71,28.2919]
[1742303330354,16.34403774,123.73,123.71,20.2085]
[1742303330656,6.96,123.75,123.7,8.084]
[1742303330657,16.34403774,123.72,123.7,8.084]
[1742303330848,16.34403774,123.72,123.7,28.2941]
[1742303331039,36.34403774,123.72,123.7,28.2941]
[1742303332057,36.34403774,123.72,123.7,20.2101]
[1742303334350,16.34403774,123.72,123.7,20.2101]
[1742303334670,16.34403774,123.71,123.7,20.2101]
[1742303336947,16.34403774,123.71,123.69,8.1477]
[1742303337258,16.34403774,123.7,123.69,8.1477]
[1742303338261,16.34403774,123.7,123.69,0.063]
[1742303339061,16.34403774,123.71,123.69,0.063]
[1742303340063,213.88,123.74,123.69,0.063]
[1742303340363,16.34403774,123.72,123.69,0.063]
[1742303343149,36.34403774,123.71,123.69,0.063]
[1742303345331,16.34403774,123.7,123.69,0.063]
[1742303347141,16.34403774,123.7,123.68,0.063]
[1742303347343,16.34403774,123.69,123.68,0.063]
[1742303350847,16.34403774,123.7,123.68,0.063]
[1742303352541,16.34403774,123.72,123.69,8.0847]
[1742303352860,16.34403774,123.72,123.69,28.2965]
[1742303362145,16.34403774,123.71,123.69,28.2965]
[1742303363146,16.34403774,123.72,123.69,28.2965]
[1742303366654,36.34403774,123.71,123.69,28.2965]
[1742303370556,16.34403774,123.7,123.69,8.0847]
[1742303372465,16.34403774,123.7,123.68,8.1483]
[1742303372660,16.34403774,123.69,123.68,8.1483]
[1742303374359,6.96,123.7,123.68,8.1483]
[1742303374546,16.34403774,123.69,123.68,8.1483]
[1742303376145,16.34403774,123.69,123.68,0.063]
[1742303377082,6.99,123.7,123.68,0.063]
[1742303377577,0.03,123.7,123.68,0.063]
[1742303378274,0.03,123.7,123.68,8.1483]
[1742303379376,16.37403774,123.7,123.68,8.1483]
[1742303380382,0.03,123.7,123.69,0.14216157]
[1742303381776,0.03,123.7,123.69,12.81547921]
[1742303382079,0.03,123.7,123.69,12.67331764]
[1742303382254,16.37403774,123.7,123.69,12.81547921]
[1742303382456,16.37403774,123.7,123.69,20.90017921]
[1742303382878,16.37403774,123.7,123.69,8.0847]
[1742303386986,16.37403774,123.7,123.68,8.1483]
[1742303396886,16.34403774,123.69,123.68,8.1483]
[1742303398888,0.03,123.7,123.68,8.1483]
[1742303400099,0.03,123.7,123.69,0.14216157]
[1742303400305,0.0001,123.7,123.69,18.79181043]
[1742303400798,0.0001,123.7,123.69,20.43591043]
[1742303401694,0.0001,123.7,123.69,28.52061043]
[1742303401879,0.0001,123.7,123.69,41.19392807]
[1742303402583,0.0001,123.7,123.69,46.80626516]
[1742303404992,0.0001,123.7,123.69,63.43462604]
[1742303405702,0.0001,123.7,123.69,75.97113614]
[1742303406197,0.0001,123.7,123.69,50.7613084]
[1742303407201,0.0001,123.7,123.69,32.48884752]
[1742303407874,0.0001,123.7,123.69,45.21009467]
[1742303409804,0.0001,123.7,123.69,26.56044581]
[1742303410308,0.0001,123.7,123.69,8.22686157]
[1742303410796,0.0001,123.7,123.69,26.87651043]
[1742303411788,0.0001,123.7,123.69,27.16083357]
[1742303412098,16.34403774,123.74,123.7,0.28432314]
[1742303412292,16.34403774,123.74,123.72,0.14216157]
[1742303412598,16.34403774,123.74,123.73,8.0821]
[1742303412796,230.29403774,123.75,123.73,8.0821]
[1742303414999,213.95,123.75,123.73,8.0821]
[1742303415497,230.29403774,123.75,123.73,8.0821]
[1742303417509,230.29403774,123.75,123.74,8.0814]
[1742303417679,16.34403774,123.77,123.75,0.14216157]
[1742303418103,0.03,123.79,123.75,18.79181043]
[1742303418307,36.34403774,123.78,123.75,18.79181043]
[1742303419404,16.34403774,123.78,123.76,8.0801]
[1742303419610,16.37403774,123.79,123.77,0.14216157]
[1742303421197,16.37403774,123.79,123.78,8.0788]
[1742303422884,0.03,123.79,123.78,8.22096157]
[1742303424106,0.03,123.81,123.79,0.14216157]
[1742303424403,0.03,123.81,123.79,18.79181043]
[1742303425698,0.03,123.81,123.8,8.21966157]
[1742303427712,36.37403774,123.81,123.8,8.21966157]
[1742303428616,20.03,123.81,123.8,8.21966157]
[1742303430302,36.37403774,123.81,123.8,8.21966157]
[1742303431925,37.93383774,123.81,123.76,28.2803]
[1742303432096,16.34403774,123.77,123.76,8.0801]